fUSD/lending_fUSD_20250708
["ID","MTS","AMOUNT","RATE_DAILY","PERIOD"]
[370370855,1751983844336,-202.0646669,0.00024657,2]
[370370857,1751983844346,-42.30315717,0.00024657,2]
[370370909,1751983844982,-966.0,0.00024451,2]
[370370998,1751983845830,-501.93074593,0.00024424,2]
[370370999,1751983845840,-1045.16974543,0.00024451,2]
[370371000,1751983845850,-417.69684283,0.00024657,2]
[370371001,1751983845859,-460.0,0.00024657,2]
[370371002,1751983845868,-460.0,0.00024657,2]
[370371003,1751983845878,-460.0,0.00024657,2]
[370371004,1751983845887,-460.0,0.00024657,2]
[370371005,1751983845897,-552.0,0.00024657,2]
[370371006,1751983845906,-460.0,0.00024657,2]
[370371007,1751983845915,-668.09,0.00024657,2]
[370371008,1751983845924,-460.0,0.00024657,2]
[370371009,1751983845933,-460.0,0.00024657,2]
[370371010,1751983845942,-540.25,0.00024657,2]
[370371012,1751983845952,-438.02563842,0.00024657,2]
[370371013,1751983845961,-460.0,0.00024657,2]
[370371015,1751983845970,-460.0,0.00024657,2]
[370371018,1751983845979,-460.0,0.00024657,2]
[370371020,1751983845988,-460.0,0.00024657,2]
[370371022,1751983845997,-460.0,0.00024657,2]
[370371024,1751983846007,-460.0,0.00024657,2]
[370371026,1751983846016,-460.0,0.00024657,2]
[370371028,1751983846025,-460.0,0.00024657,2]
[370371030,1751983846034,-460.0,0.00024657,2]
[370371032,1751983846043,-460.0,0.00024657,2]
[370371034,1751983846052,-460.0,0.00024657,2]
[370371036,1751983846061,-306.93,0.00024657,2]
[370371038,1751983846071,-460.0,0.00024657,2]
[370371040,1751983846079,-460.0,0.00024657,2]
[370371042,1751983846088,-460.0,0.00024657,2]
[370371044,1751983846097,-460.0,0.00024657,2]
[370371046,1751983846106,-518.53,0.00024657,2]
[370371048,1751983846115,-496.92,0.00024657,2]
[370371050,1751983846125,-460.0,0.00024657,2]
[370371052,1751983846136,-460.0,0.00024657,2]
[370371054,1751983846146,-460.0,0.00024657,2]
[370371056,1751983846155,-1040.96,0.00024657,2]
[370371058,1751983846165,-460.0,0.00024657,2]
[370371060,1751983846174,-542.23,0.00024657,2]
[370371062,1751983846184,-460.0,0.00024657,2]
[370371064,1751983846193,-460.0,0.00024657,2]
[370371066,1751983846203,-460.0,0.00024657,2]
[370371067,1751983846212,-490.0,0.00024657,2]
[370371069,1751983846222,-493.58,0.00024657,2]
[370371071,1751983846231,-460.0,0.00024657,2]
[370371073,1751983846240,-509.57,0.00024657,2]
[370371075,1751983846250,-490.0,0.00024657,2]
[370371077,1751983846259,-587.54,0.00024657,2]
[370371080,1751983846268,-747.21,0.00024657,2]
[370371082,1751983846278,-551.73539674,0.00024657,2]
[370371083,1751983846287,-490.0,0.00024657,2]
[370371085,1751983846296,-684.55,0.00024657,2]
[370371087,1751983846306,-460.0,0.00024657,2]
[370371089,1751983846315,-460.0,0.00024657,2]
[370371091,1751983846324,-460.0,0.00024657,2]
[370371093,1751983846334,-460.0,0.00024657,2]
[370371095,1751983846343,-692.21,0.00024657,2]
[370371097,1751983846352,-490.0,0.00024657,2]
[370371099,1751983846361,-460.0,0.00024657,2]
[370371101,1751983846370,-460.0,0.00024657,2]
[370371103,1751983846379,-460.0,0.00024657,2]
[370371105,1751983846389,-460.0,0.00024657,2]
[370371107,1751983846399,-189.69797191,0.00024657,2]
[370371109,1751983846408,-460.0,0.00024657,2]
[370371111,1751983846418,-460.0,0.00024657,2]
[370371113,1751983846427,-221.52124838,0.00024657,2]
[370371115,1751983846436,-460.0,0.00024657,2]
[370371117,1751983846445,-460.0,0.00024657,2]
[370371119,1751983846454,-544.26,0.00024657,2]
[370371121,1751983846463,-460.0,0.00024657,2]
[370371123,1751983846472,-460.0,0.00024657,2]
[370371125,1751983846482,-460.0,0.00024657,2]
[370371149,1751983846492,-460.0,0.00024657,2]
[370371153,1751983846728,-490.0,0.00024657,2]
[370371155,1751983846738,-460.0,0.00024657,2]
[370371157,1751983846747,-460.0,0.00024657,2]
[370371158,1751983846756,-460.0,0.00024657,2]
[370371160,1751983846765,-460.0,0.00024657,2]
[370371162,1751983846774,-460.0,0.00024657,2]
[370371164,1751983846784,-461.255817,0.00024657,2]
[370371166,1751983846793,-460.0,0.00024657,2]
[370371169,1751983846803,-460.0,0.00024657,2]
[370371171,1751983846812,-460.0,0.00024657,2]
[370371173,1751983846822,-557.91,0.00024657,2]
[370371174,1751983846831,-460.0,0.00024657,2]
[370371176,1751983846841,-460.0,0.00024657,2]
[370371178,1751983846850,-460.0,0.00024657,2]
[370371180,1751983846860,-460.0,0.00024657,2]
[370371182,1751983846869,-460.0,0.00024657,2]
[370371184,1751983846878,-511.3,0.00024657,2]
[370371186,1751983846888,-500.0,0.00024657,2]
[370371188,1751983846898,-500.0,0.00024657,2]
[370371190,1751983846907,-500.0,0.00024657,2]
[370371193,1751983846917,-403.86388522,0.00024657,2]
[370371194,1751983846926,-460.0,0.00024657,2]
[370371196,1751983846936,-502.43,0.00024657,2]
[370371198,1751983846945,-460.0,0.00024657,2]
[370371200,1751983846955,-460.0,0.00024657,2]
[370371202,1751983846964,-460.0,0.00024657,2]
[370371204,1751983846974,-460.0,0.00024657,2]
[370371206,1751983846983,-460.0,0.00024657,2]
[370371208,1751983846993,-460.0,0.00024657,2]
[370371210,1751983847002,-488.18,0.00024657,2]
[370371212,1751983847012,-460.0,0.00024657,2]
[370371214,1751983847021,-540.93,0.00024657,2]
[370371216,1751983847030,-634.1,0.00024657,2]
[370371218,1751983847040,-460.0,0.00024657,2]
[370371220,1751983847049,-460.0,0.00024657,2]
[370371222,1751983847059,-460.0,0.00024657,2]
[370371224,1751983847068,-460.0,0.00024657,2]
[370371226,1751983847078,-485.48,0.00024657,2]
[370371228,1751983847087,-460.0,0.00024657,2]
[370371230,1751983847097,-548.94270814,0.00024657,2]
[370371236,1751983847147,-21.29729186,0.00024657,2]
[370371238,1751983847156,-395.494605,0.00024657,2]
[370373575,1751984842803,152.36,0.00013699,2]
[370373679,1751984949747,-818.0,0.00018,2]
[370373690,1751985031707,-5218.47418386,0.00018,2]
[370373691,1751985031716,-1200.0,0.00019399,2]
[370373692,1751985031726,-6623.36581614,0.000194,2]
[370373693,1751985031740,-2785.34289488,0.000194,2]
[370373694,1751985031750,-501.0,0.00021239,2]
[370373695,1751985031760,-2120.89030016,0.000219,6]
[370373696,1751985031770,-86106.51448,0.00022,10]
[370373697,1751985031781,-151.0,0.00022,2]
[370373698,1751985031790,-210.34477682,0.00022,10]
[370373699,1751985031799,-160.0,0.00022,2]
[370373700,1751985031809,-2120.89029992,0.00022383,7]
[370373701,1751985031819,-157.0,0.0002247,2]
[370373702,1751985031828,-150.0,0.0002266,2]
[370373703,1751985031838,-159.57521607,0.0002266,2]
[370373704,1751985031848,-150.0,0.0002266,2]
[370373705,1751985031860,-150.0,0.0002266,2]
[370373706,1751985031871,-150.40605803,0.0002266,2]
[370373707,1751985031881,-151.85010581,0.0002266,2]
[370373708,1751985031890,-150.00000001,0.0002266,2]
[370373709,1751985031900,-3060.97023111,0.00022836,2]
[370373710,1751985031911,-2120.89029992,0.00022866,8]
[370373711,1751985031924,-154.0,0.0002294,2]
[370373712,1751985031934,-1415.0,0.00023,5]
[370373713,1751985031943,-666.0,0.00023213,2]
[370373714,1751985031953,-162.49,0.00023257,2]
[370373715,1751985031962,-586.13063726,0.00023329,2]
[370373716,1751985032001,-600.29936274,0.00023329,2]
[370373717,1751985032010,-2120.89029992,0.00023348,9]
[370373718,1751985032020,-155.14,0.00023359,2]
[370373720,1751985032029,-150.0,0.0002341,2]
[370373722,1751985032039,-816.19,0.00023442,2]
[370373723,1751985032048,-207.4,0.00023456,2]
[370373724,1751985032058,-151.0,0.00023456,2]
[370373727,1751985032068,-576.95783515,0.00023456,2]
[370373730,1751985032078,-300.0,0.00023456,2]
[370373732,1751985032087,-151.61,0.0002347,2]
[370373735,1751985032097,-5694.29979778,0.0002347,2]
[370373736,1751985032112,-670.63420673,0.0002347,2]
[370373737,1751985032124,-290.30369303,0.0002347,2]
[370373739,1751985032136,-262.23230246,0.0002347,2]
[370373740,1751985032145,-301.48,0.00023559,2]
[370373741,1751985032155,-500.0,0.00023586,3]
[370373742,1751985032165,-1000.0,0.00023586,2]
[370373743,1751985032178,-261.18,0.00023605,2]
[370373744,1751985032188,-502.0,0.00023648,2]
[370373745,1751985032197,-971.80769754,0.00023831,10]
[370373746,1751985032225,-1149.08260238,0.00023831,10]
[370373747,1751985032234,-186.73,0.00023836,2]
[370373748,1751985032244,-402.29415296,0.00023858,2]
[370373749,1751985032254,-150.0,0.0002388,2]
[370373750,1751985032263,-167.27,0.00023906,2]
[370373751,1751985032273,-881.9204153,0.00024,5]
[370373752,1751985038091,-447.31115969,0.0002013,2]
[370373753,1751985038178,-51.68884031,0.0002013,2]
[370373754,1751985038188,-1188.38115969,0.00024,5]
[370373755,1751985038199,-1696.65001383,0.00024,5]
[370373756,1751985038209,-830.92485015,0.00024158,2]
[370373757,1751985038218,-508.596412,0.00024163,4]
[370373758,1751985038227,-531.45,0.00024174,2]
[370373759,1751985038237,-2236.14,0.00024174,2]
[370373760,1751985038246,-150.99,0.00024174,2]
[370373761,1751985038256,-250.0,0.000242,2]
[370373762,1751985038265,-460.0,0.00024305,2]
[370373763,1751985038275,-2120.89029992,0.00024314,10]
[370373764,1751985038285,-3560.17787577,0.00024327,2]
[370373765,1751985038294,-1189.48102139,0.0002435,2]
[370373766,1751985038303,-150.0,0.0002435,2]
[370373767,1751985038312,-168.0,0.00024384,2]
[370373768,1751985038322,-2000.0,0.000244,2]
[370373769,1751985038333,-3560.17787573,0.00024413,2]
[370373770,1751985038343,-16097.5327555,0.0002442,2]
[370373771,1751985038352,-200.0,0.00024427,2]
[370373772,1751985038362,-200.0,0.00024459,2]
[370373773,1751985038371,-1734.08724896,0.00024492,2]
[370373774,1751985038380,-3560.17787573,0.000245,2]
[370373775,1751985038390,-1000.0,0.00024534,2]
[370373776,1751985038399,-1000.0,0.00024534,2]
[370373777,1751985038411,-1000.0,0.00024534,2]
[370373778,1751985038420,-1000.0,0.00024534,2]
[370373779,1751985038431,-1000.0,0.00024534,2]
[370373780,1751985038440,-1000.0,0.00024534,2]
[370373781,1751985038450,-1000.0,0.00024534,2]
[370373782,1751985038460,-1000.0,0.00024534,2]
[370373783,1751985038469,-1000.0,0.00024534,2]
[370373784,1751985038484,-1000.0,0.00024534,2]
[370373785,1751985038493,-1000.0,0.00024534,2]
[370373786,1751985038503,-1000.0,0.00024534,2]
[370373787,1751985038512,-1000.0,0.00024534,2]
[370373788,1751985038523,-732.4906048,0.00024555,4]
[370373789,1751985038533,-1608.93579638,0.00024555,2]
[370373790,1751985038542,-409.1746,0.00024555,2]
[370373791,1751985038553,-5000.0,0.00024557,2]
[370373792,1751985038563,-401.53299906,0.00024557,2]
[370373793,1751985038572,-293.253,0.00024557,7]
[370373794,1751985038582,-159.50296073,0.00024557,2]
[370373795,1751985038591,-670.84771578,0.00024557,2]
[370373796,1751985038601,-460.63950823,0.00024584,2]
[370373797,1751985038610,-3560.17787573,0.00024586,2]
[370373798,1751985038619,-4835.542,0.00024592,7]
[370373799,1751985038628,-460.63950823,0.000246,2]
[370373800,1751985038638,-816.19,0.00024614,2]
[370373801,1751985038647,-1608.93579634,0.00024616,2]
[370373804,1751985038657,-460.63950823,0.00024617,2]
[370373805,1751985038667,-150.0,0.00024618,2]
[370373808,1751985038678,-500.0,0.00024618,2]
[370373810,1751985038687,-150.0,0.00024618,2]
[370373812,1751985038697,-150.0,0.00024618,2]
[370373813,1751985038706,-518.0,0.00024618,2]
[370373815,1751985038715,-460.63950823,0.00024633,2]
[370373818,1751985038725,-5000.0,0.00024639,2]
[370373821,1751985038735,-4325.18,0.00024639,3]
[370373823,1751985038744,-156.88,0.00024639,2]
[370373825,1751985038753,-1072.0,0.00024645,2]
[370373827,1751985038763,-156.88,0.00024647,2]
[370373829,1751985038772,-210.82496657,0.00024647,2]
[370373831,1751985038782,-500.0,0.00024648,2]
[370373833,1751985038791,-158.18853682,0.00024648,2]
[370373835,1751985038800,-500.0,0.00024648,2]
[370373837,1751985038809,-151.73013655,0.00024648,2]
[370373839,1751985038819,-364.17677736,0.00024648,2]
[370373841,1751985038828,-500.0,0.00024648,2]
[370373842,1751985038837,-205.03782706,0.00024648,2]
[370373845,1751985038847,-173.49482982,0.00024648,2]
[370373846,1751985038856,-443.4131905,0.00024649,2]
[370373849,1751985038866,-7312.4696686,0.00024649,2]
[370373851,1751985038875,-9888.6622649,0.00024649,2]
[370373853,1751985038885,-8009.2751977,0.00024649,2]
[370373855,1751985038895,-3507.2207975,0.00024649,2]
[370373857,1751985038905,-460.63950823,0.0002465,2]
[370373859,1751985038915,-172701.4634629,0.00024655,2]
[370373860,1751985038924,-1083.0,0.00024655,2]
[370373862,1751985038936,-249.99375911,0.00024656,2]
[370373864,1751985038945,-500.0,0.00024656,2]
[370373866,1751985038955,-500.0,0.00024656,2]
[370373869,1751985038964,-599.98168337,0.00024656,2]
[370373870,1751985038975,-193.7683036,0.00024656,2]
[370373873,1751985038984,-500.0,0.00024656,2]
[370373875,1751985038994,-196.45160098,0.00024656,2]
[370373877,1751985039003,-7356.7059806,0.00024656,2]
[370373879,1751985039014,-24832.14638093,0.00024656,2]
[370373882,1751985039034,-1943.7107412,0.00024656,2]
[370373883,1751985039046,-777.38640433,0.00024656,2]
[370373885,1751985039057,-2161.56940902,0.00024656,2]
[370373887,1751985039070,-325.20457403,0.00024656,2]
[370373889,1751985039081,-6206.42057011,0.00024656,2]
[370373963,1751985039794,-332.13228803,0.00024557,2]
[370373965,1751985039806,-3255.0,0.00024557,2]
[370373968,1751985039817,-1412.86771197,0.00024557,2]
[370373970,1751985039827,-1974.26065138,0.00024656,2]
[370373972,1751985039837,-613.4900618,0.00024656,2]
[370373974,1751985039846,-552.36890121,0.00024657,2]
[370374016,1751985040253,-1075.63109879,0.00024657,2]
[370374018,1751985040263,-324.16289212,0.00024657,2]
[370374020,1751985040274,-406.7114413,0.00024657,2]
[370374028,1751985040346,-970.53481666,0.00024657,2]
[370374030,1751985040356,-460.0,0.00024657,2]
[370374031,1751985040366,-460.0,0.00024657,2]
[370374034,1751985040375,-460.0,0.00024657,2]
[370374035,1751985040385,-532.26382205,0.00024657,2]
[370374037,1751985040394,-460.0,0.00024657,2]
[370374039,1751985040403,-460.0,0.00024657,2]
[370374041,1751985040413,-460.0,0.00024657,2]
[370374043,1751985040422,-460.0,0.00024657,2]
[370374046,1751985040434,-460.0,0.00024657,2]
[370374047,1751985040443,-460.0,0.00024657,2]
[370374050,1751985040453,-460.0,0.00024657,2]
[370374052,1751985040462,-460.0,0.00024657,2]
[370374053,1751985040471,-510.04,0.00024657,2]
[370374055,1751985040485,-460.0,0.00024657,2]
[370374058,1751985040494,-460.0,0.00024657,2]
[370374059,1751985040504,-460.0,0.00024657,2]
[370374061,1751985040513,-460.0,0.00024657,2]
[370374063,1751985040524,-460.0,0.00024657,2]
[370374065,1751985040534,-460.0,0.00024657,2]
[370374066,1751985040543,-460.0,0.00024657,2]
[370374068,1751985040552,-460.0,0.00024657,2]
[370374070,1751985040562,-182.98936128,0.00024657,2]
[370374072,1751985040577,-333.59063872,0.00024657,2]
[370374074,1751985040587,-179.82436132,0.00024657,2]
[370374266,1751985042889,-188.86,0.0002427,2]
[370374267,1751985042899,-280.17563868,0.00024657,2]
[370374268,1751985042909,-460.0,0.00024657,2]
[370374269,1751985042919,-460.0,0.00024657,2]
[370374270,1751985042930,-460.0,0.00024657,2]
[370374271,1751985042939,-323.96436132,0.00024657,2]
[370374272,1751985042951,-136.03563868,0.00024657,2]
[370374274,1751985042961,-239.32143932,0.00024657,2]
[370374282,1751985043028,-220.67856068,0.00024657,2]
[370374284,1751985043038,-460.0,0.00024657,2]
[370374286,1751985043047,-460.0,0.00024657,2]
[370374288,1751985043057,-1000.0,0.00024657,2]
[370374290,1751985043066,-460.0,0.00024657,2]
[370374292,1751985043075,-460.0,0.00024657,2]
[370374294,1751985043084,-460.0,0.00024657,2]
[370374296,1751985043094,-737.53,0.00024657,2]
[370374298,1751985043103,-460.0,0.00024657,2]
[370374300,1751985043113,-460.0,0.00024657,2]
[370374302,1751985043122,-460.0,0.00024657,2]
[370374304,1751985043131,-460.0,0.00024657,2]
[370374306,1751985043141,-460.0,0.00024657,2]
[370374308,1751985043152,-460.0,0.00024657,2]
[370374310,1751985043161,-460.0,0.00024657,2]
[370374312,1751985043170,-565.01,0.00024657,2]
[370374314,1751985043180,-460.0,0.00024657,2]
[370374316,1751985043189,-460.0,0.00024657,2]
[370374318,1751985043199,-779.48,0.00024657,2]
[370374320,1751985043208,-779.48,0.00024657,2]
[370374322,1751985043218,-460.0,0.00024657,2]
[370374324,1751985043227,-460.0,0.00024657,2]
[370374326,1751985043236,-460.0,0.00024657,2]
[370374328,1751985043245,-460.0,0.00024657,2]
[370374330,1751985043254,-461.55090387,0.00024657,2]
[370374332,1751985043264,-460.0,0.00024657,2]
[370374334,1751985043274,-460.0,0.00024657,2]
[370374336,1751985043284,-646.75,0.00024657,2]
[370374338,1751985043294,-327.50002768,0.00024657,2]
[370374340,1751985043304,-460.0,0.00024657,2]
[370374342,1751985043314,-460.0,0.00024657,2]
[370374344,1751985043324,-540.07,0.00024657,2]
[370374346,1751985043333,-571.44051519,0.00024657,2]
[370374348,1751985043342,-487.24668259,0.00024657,2]
[370374350,1751985043352,-460.0,0.00024657,2]
[370374352,1751985043362,-158.40838,0.00024657,2]
[370374354,1751985043372,-1006.919924,0.00024657,2]
[370374356,1751985043381,-490.0,0.00024657,2]
[370374358,1751985043390,-626.25,0.00024657,2]
[370374360,1751985043399,-160.668486,0.00024657,2]
[370374362,1751985043409,-163.406172,0.00024657,2]
[370374364,1751985043419,-460.0,0.00024657,2]
[370374366,1751985043429,-1019.54923026,0.00024657,2]
[370374369,1751985043446,-314.58769974,0.00024657,2]
[370374371,1751985043455,-460.0,0.00024657,2]
[370374373,1751985043465,-1228.458527,0.00024657,2]
[370374375,1751985043475,-460.0,0.00024657,2]
[370374377,1751985043488,-460.0,0.00024657,2]
[370374379,1751985043497,-570.44,0.00024657,2]
[370374381,1751985043507,-460.0,0.00024657,2]
[370374383,1751985043517,-174.136923,0.00024657,2]
[370374385,1751985043526,-460.0,0.00024657,2]
[370374387,1751985043536,-422.36241149,0.00024657,2]
[370374389,1751985043546,-507.93201924,0.00024657,2]
[370374391,1751985043557,-369.68536073,0.00024657,2]
[370374393,1751985043567,-460.0,0.00024657,2]
[370374395,1751985043576,-460.0,0.00024657,2]
[370374397,1751985043586,-460.0,0.00024657,2]
[370374399,1751985043595,-460.0,0.00024657,2]
[370374401,1751985043605,-521.79299705,0.00024657,2]
[370374403,1751985043614,-340.57056383,0.00024657,2]
[370374405,1751985043624,-460.0,0.00024657,2]
[370374407,1751985043632,-460.0,0.00024657,2]
[370374409,1751985043642,-460.0,0.00024657,2]
[370374411,1751985043652,-460.0,0.00024657,2]
[370374413,1751985043661,-493.17072912,0.00024657,2]
[370374415,1751985043670,-165.914755,0.00024657,2]
[370374417,1751985043680,-460.0,0.00024657,2]
[370374419,1751985043689,-481.49,0.00024657,2]
[370374421,1751985043700,-460.0,0.00024657,2]
[370374423,1751985043710,-330.70638362,0.00024657,2]
[370374425,1751985043720,-460.0,0.00024657,2]
[370374427,1751985043729,-460.0,0.00024657,2]
[370374429,1751985043739,-388.7047484,0.00024657,2]
[370374431,1751985043749,-505.56132426,0.00024657,2]
[370374432,1751985043758,-460.0,0.00024657,2]
[370374434,1751985043767,-460.0,0.00024657,2]
[370374436,1751985043776,-460.0,0.00024657,2]
[370374438,1751985043787,-460.0,0.00024657,2]
[370374441,1751985043797,-460.0,0.00024657,2]
[370374442,1751985043807,-492.08,0.00024657,2]
[370374444,1751985043817,-158.72731,0.00024657,2]
[370374447,1751985043828,-460.0,0.00024657,2]
[370374448,1751985043839,-374.278808,0.00024657,2]
[370374450,1751985043848,-460.0,0.00024657,2]
[370374452,1751985043857,-460.0,0.00024657,2]
[370374455,1751985043867,-460.0,0.00024657,2]
[370374457,1751985043877,-166.885609,0.00024657,2]
[370374459,1751985043887,-460.0,0.00024657,2]
[370374461,1751985043896,-460.0,0.00024657,2]
[370374463,1751985043906,-460.0,0.00024657,2]
[370374465,1751985043915,-384.51383052,0.00024657,2]
[370374469,1751985043948,-75.48616948,0.00024657,2]
[370374471,1751985043958,-559.66,0.00024657,2]
[370374473,1751985043968,-460.0,0.00024657,2]
[370374475,1751985043977,-527.63627955,0.00024657,2]
[370374477,1751985043986,-460.0,0.00024657,2]
[370374479,1751985043996,-460.0,0.00024657,2]
[370374481,1751985044008,-460.0,0.00024657,2]
[370374483,1751985044017,-520.98,0.00024657,2]
[370374485,1751985044026,-161.856633,0.00024657,2]
[370374487,1751985044036,-166.901302,0.00024657,2]
[370374489,1751985044045,-573.18,0.00024657,2]
[370374491,1751985044055,-177.139055,0.00024657,2]
[370374493,1751985044064,-158.557586,0.00024657,2]
[370374495,1751985044077,-460.0,0.00024657,2]
[370374497,1751985044086,-460.0,0.00024657,2]
[370374499,1751985044096,-152.704946,0.00024657,2]
[370374501,1751985044105,-460.0,0.00024657,2]
[370374503,1751985044114,-460.0,0.00024657,2]
[370374505,1751985044123,-460.0,0.00024657,2]
[370374507,1751985044132,-156.726379,0.00024657,2]
[370374532,1751985044365,-200.0,0.00024657,2]
[370374534,1751985044376,-460.0,0.00024657,2]
[370374537,1751985044385,-460.0,0.00024657,2]
[370374539,1751985044395,-460.0,0.00024657,2]
[370374541,1751985044404,-460.0,0.00024657,2]
[370374543,1751985044414,-339.93436773,0.00024657,2]
[370374545,1751985044423,-460.0,0.00024657,2]
[370374547,1751985044432,-460.0,0.00024657,2]
[370374549,1751985044441,-166.731889,0.00024657,2]
[370374551,1751985044451,-460.0,0.00024657,2]
[370374553,1751985044460,-460.0,0.00024657,2]
[370374554,1751985044469,-460.0,0.00024657,2]
[370374557,1751985044482,-460.0,0.00024657,2]
[370374559,1751985044491,-460.0,0.00024657,2]
[370374561,1751985044502,-460.0,0.00024657,2]
[370374562,1751985044512,-651.77,0.00024657,2]
[370374565,1751985044522,-460.0,0.00024657,2]
[370374567,1751985044531,-460.0,0.00024657,2]
[370374568,1751985044541,-460.0,0.00024657,2]
[370374570,1751985044550,-521.2,0.00024657,2]
[370374573,1751985044560,-460.0,0.00024657,2]
[370374575,1751985044570,-1043.49,0.00024657,2]
[370374577,1751985044579,-1043.49,0.00024657,2]
[370374579,1751985044588,-460.0,0.00024657,2]
[370374581,1751985044598,-1043.49,0.00024657,2]
[370374583,1751985044608,-1043.49,0.00024657,2]
[370374585,1751985044617,-1043.49,0.00024657,2]
[370374587,1751985044626,-1043.49,0.00024657,2]
[370374589,1751985044636,-1043.49,0.00024657,2]
[370374591,1751985044645,-1043.49,0.00024657,2]
[370374593,1751985044654,-1043.49,0.00024657,2]
[370374594,1751985044663,-460.0,0.00024657,2]
[370374597,1751985044672,-460.0,0.00024657,2]
[370374598,1751985044682,-460.0,0.00024657,2]
[370374601,1751985044691,-460.0,0.00024657,2]
[370374603,1751985044701,-482.22,0.00024657,2]
[370374605,1751985044710,-460.0,0.00024657,2]
[370374607,1751985044719,-460.0,0.00024657,2]
[370374609,1751985044729,-460.0,0.00024657,2]
[370374610,1751985044740,-460.0,0.00024657,2]
[370374612,1751985044749,-460.0,0.00024657,2]
[370374614,1751985044758,-460.0,0.00024657,2]
[370374617,1751985044769,-172.00790694,0.00024657,2]
[370374619,1751985044779,-460.0,0.00024657,2]
[370374621,1751985044788,-460.0,0.00024657,2]
[370374623,1751985044799,-460.0,0.00024657,2]
[370374624,1751985044809,-460.0,0.00024657,2]
[370374626,1751985044818,-460.0,0.00024657,2]
[370374628,1751985044828,-460.0,0.00024657,2]
[370374630,1751985044838,-460.0,0.00024657,2]
[370374633,1751985044849,-460.0,0.00024657,2]
[370374634,1751985044859,-460.0,0.00024657,2]
[370374636,1751985044869,-460.0,0.00024657,2]
[370374638,1751985044879,-460.0,0.00024657,2]
[370374640,1751985044888,-460.0,0.00024657,2]
[370374642,1751985044897,-470.57,0.00024657,2]
[370374644,1751985044907,-460.0,0.00024657,2]
[370374646,1751985044916,-463.37,0.00024657,2]
[370374648,1751985044925,-460.0,0.00024657,2]
[370374650,1751985044936,-460.0,0.00024657,2]
[370374652,1751985044945,-404.20940568,0.00024657,2]
[370374654,1751985044955,-151.0,0.00024657,7]
[370374656,1751985044965,-460.0,0.00024657,2]
[370374658,1751985044974,-460.0,0.00024657,2]
[370374660,1751985044983,-754.31,0.00024657,2]
[370374662,1751985044993,-460.0,0.00024657,2]
[370374664,1751985045003,-460.0,0.00024657,2]
[370374666,1751985045012,-460.0,0.00024657,2]
[370374668,1751985045022,-680.68,0.00024657,2]
[370374670,1751985045031,-589.8290281,0.00024657,2]
[370374672,1751985045041,-460.0,0.00024657,2]
[370374674,1751985045051,-556.13,0.00024657,2]
[370374676,1751985045061,-460.0,0.00024657,2]
[370374678,1751985045071,-460.0,0.00024657,2]
[370374680,1751985045080,-460.0,0.00024657,2]
[370374682,1751985045090,-460.0,0.00024657,2]
[370374684,1751985045100,-460.0,0.00024657,2]
[370374686,1751985045109,-460.0,0.00024657,2]
[370374688,1751985045119,-460.0,0.00024657,2]
[370374690,1751985045129,-460.0,0.00024657,2]
[370374692,1751985045139,-460.0,0.00024657,2]
[370374694,1751985045148,-460.0,0.00024657,2]